fUSD/lending_fUSD_20240706
["ID","MTS","AMOUNT","RATE_DAILY","PERIOD"]
[331379541,1720302932122,19831.83036653,0.00010896,2]
[331379542,1720302934766,411.80975373,0.00010896,2]
[331379544,1720302954621,1983.97341097,0.00011199,2]
[331379552,1720302993498,4457.9797839,0.00011199,2]
[331379558,1720303014688,411.80975373,0.00010896,2]
[331379593,1720303057239,155.72385129,0.00011199,2]
[331379598,1720303061047,259.07,0.00010218,2]
[331379609,1720303106548,626.96699205,0.00011199,2]
[331379616,1720303120708,232.12480952,0.00010896,2]
[331379635,1720303172178,366.2638707,0.00011199,2]
[331379638,1720303188964,366.2638707,0.00011199,2]
[331379652,1720303270421,438.49798576,0.00011199,2]
[331379672,1720303322630,485.24402982,0.00011199,2]
[331379683,1720303359887,162.53,0.00010206,2]
[331379714,1720303542940,679.41,0.00010797,2]
[331379725,1720303619859,233.88550769,0.00011199,2]
[331379760,1720303833070,-165.60822621,0.00012202,2]
[331379761,1720303833082,-304.56363354,0.00012273,2]
[331379762,1720303833093,-296.64726033,0.00012273,2]
[331379763,1720303833103,-304.56363354,0.00012273,2]
[331379764,1720303833113,-367.78791899,0.00012302,2]
[331379765,1720303833125,-150.0,0.000126,2]
[331379766,1720303833135,-150.0,0.00012682,2]
[331379767,1720303833146,-758.23481416,0.00012683,2]
[331379768,1720303833169,-350.0,0.00012683,2]
[331379769,1720303833181,-279.69657276,0.00012683,2]
[331379770,1720303833194,-1098.8377003,0.00012683,2]
[331379771,1720303833215,-522.58091288,0.00012683,2]
[331379772,1720303833228,-818.82444517,0.00012683,2]
[331379773,1720303833244,-757.13168339,0.00012683,2]
[331379774,1720303833263,-7946.10655313,0.00012683,2]
[331379775,1720303833275,-3466.7,0.00012683,2]
[331379776,1720303833291,-7881.88731821,0.00012683,2]
[331379777,1720303833306,-250.0,0.00012715,2]
[331379778,1720303833317,-250.0,0.00012741,2]
[331379779,1720303833328,-150.0,0.00012765,2]
[331379780,1720303833344,-186.71,0.00012767,2]
[331379781,1720303833355,-499.99,0.00012767,2]
[331379782,1720303833367,-500.0,0.00012782,2]
[331379783,1720303833399,-1908.48589845,0.00012799,2]
[331379784,1720303833417,-7437.2549129,0.00012799,2]
[331379785,1720303833431,-6677.20918865,0.00012799,2]
[331379786,1720303833444,-150.0,0.00012847,2]
[331379787,1720303833454,-294.39,0.00012886,2]
[331379788,1720303833467,-150.0,0.00012929,2]
[331379789,1720303833487,-572.0,0.00012966,2]
[331379790,1720303833498,-150.0,0.00013012,2]
[331379791,1720303833510,-854.45,0.00013041,2]
[331379792,1720303833524,-854.45,0.00013041,2]
[331379793,1720303833535,-1708.65,0.00013041,2]
[331379794,1720303833545,-679.41,0.00013061,2]
[331379795,1720303833558,-150.0,0.00013094,2]
[331379796,1720303833574,-150.0,0.00013176,2]
[331379797,1720303833585,-528.66,0.00013178,2]
[331379798,1720303833596,-5015.01002417,0.00013207,2]
[331379799,1720303833613,-3806.43200422,0.00013207,2]
[331379800,1720303833628,-150.0,0.00013259,2]
[331379801,1720303833640,-150.0,0.00013341,2]
[331379802,1720303833653,-150.0,0.00013424,2]
[331379803,1720303833666,-150.0,0.00013506,2]
[331379804,1720303833677,-379.18002137,0.00013543,2]
[331379805,1720303833687,-150.0,0.00013588,2]
[331379806,1720303833715,-300.0,0.0001365,2]
[331379807,1720303833726,-150.0,0.00013671,2]
[331379808,1720303833738,-250.0,0.00013699,2]
[331379809,1720303833750,-1200.0,0.000137,2]
[331379810,1720303833765,-2317.746,0.0001372,2]
[331379811,1720303833775,-548.0,0.0001372,2]
[331379812,1720303833785,-291.0,0.0001372,2]
[331379813,1720303833796,-1032.54905224,0.0001372,2]
[331379814,1720303833808,-150.0,0.00013728,2]
[331379815,1720303833824,-150.0,0.00013731,2]
[331379816,1720303833853,-150.0,0.00013739,2]
[331379817,1720303833864,-150.0,0.0001374,2]
[331379819,1720303833874,-150.0,0.00013747,2]
[331379823,1720303833889,-150.0,0.00013748,2]
[331379825,1720303833916,-150.0,0.0001375,2]
[331379826,1720303833930,-150.0,0.00013753,2]
[331379827,1720303833943,-150.0,0.00013753,2]
[331379828,1720303833958,-150.0,0.00013753,2]
[331379829,1720303833969,-150.0,0.00013754,2]
[331379830,1720303833985,-150.0,0.00013761,2]
[331379831,1720303834002,-150.0,0.00013762,2]
[331379832,1720303834014,-150.0,0.00013765,2]
[331379833,1720303834027,-150.0,0.00013766,2]
[331379834,1720303834039,-150.0,0.00013766,2]
[331379835,1720303834052,-150.0,0.00013775,2]
[331379836,1720303834065,-150.0,0.00013778,2]
[331379837,1720303834076,-3245.5692,0.00013781,2]
[331379838,1720303834089,-294.6914,0.00013781,2]
[331379839,1720303834104,-150.0,0.00013781,2]
[331379840,1720303834124,-150.0,0.00013784,2]
[331379841,1720303834135,-150.0,0.00013785,2]
[331379842,1720303834149,-150.0,0.00013789,2]
[331379843,1720303834162,-150.0,0.0001379,2]
[331379844,1720303834187,-1000.0,0.000138,2]
[331379845,1720303834199,-6497.7158,0.000138,2]
[331379846,1720303834215,-3762.1038,0.000138,2]
[331379847,1720303834234,-150.0,0.00013805,2]
[331379848,1720303834246,-150.0,0.00013809,2]
[331379849,1720303834264,-150.0,0.00013811,2]
[331379850,1720303834275,-150.0,0.00013815,2]
[331379851,1720303834289,-150.0,0.00013821,2]
[331379852,1720303834299,-150.0,0.00013824,2]
[331379853,1720303834312,-150.0,0.00013828,2]
[331379854,1720303834327,-150.0,0.00013835,2]
[331379855,1720303834347,-150.0,0.00013837,2]
[331379856,1720303834369,-150.0,0.00013843,2]
[331379857,1720303834378,-150.0,0.00013848,2]
[331379858,1720303834392,-150.0,0.00013853,2]
[331379859,1720303834402,-150.0,0.00013867,2]
[331379860,1720303834418,-150.0,0.00013872,2]
[331379861,1720303834431,-150.0,0.00013876,2]
[331379862,1720303834441,-150.0,0.0001388,2]
[331379863,1720303834453,-150.0,0.0001388,2]
[331379864,1720303834466,-150.0,0.00013884,2]
[331379865,1720303834482,-192.45965301,0.000139,2]
[331379866,1720303834496,-22161.028,0.000139,2]
[331379867,1720303834506,-219.6763,0.000139,2]
[331379868,1720303834523,-174.3285366,0.000139,2]
[331379869,1720303834534,-7500.0,0.000139,2]
[331379870,1720303834544,-5557.20976709,0.000139,2]
[331379871,1720303834555,-551.81029418,0.000139,2]
[331379872,1720303834568,-334.20663845,0.000139,2]
[331379873,1720303834583,-620.10900742,0.000139,2]
[331379874,1720303834600,-150.0,0.00013906,2]
[331379875,1720303834610,-150.0,0.00013912,2]
[331379876,1720303834621,-150.0,0.00013918,2]
[331379877,1720303834633,-150.0,0.00013918,2]
[331379878,1720303834658,-150.0,0.00013924,2]
[331379879,1720303834668,-150.0,0.00013926,2]
[331379880,1720303834681,-150.0,0.00013933,2]
[331379881,1720303834695,-150.0,0.00013939,2]
[331379882,1720303834708,-150.0,0.00013955,2]
[331379883,1720303834718,-150.0,0.00013959,2]
[331379884,1720303834737,-150.0,0.00013964,2]
[331379885,1720303834747,-150.0,0.00013973,2]
[331379886,1720303834764,-150.0,0.00013975,2]
[331379887,1720303834774,-150.0,0.0001398,2]
[331379888,1720303834788,-150.0,0.00013982,2]
[331379889,1720303834798,-150.0,0.00013987,2]
[331379890,1720303834808,-724.7537972,0.00013989,2]
[331379891,1720303834824,-879.7589469,0.00013989,2]
[331379892,1720303834836,-626.1054244,0.0001399,2]
[331379893,1720303834849,-527.4570516,0.0001399,2]
[331379894,1720303834859,-428.8086789,0.0001399,2]
[331379895,1720303834874,-150.0,0.0001399,2]
[331379896,1720303834884,-150.0,0.00013996,2]
[331379897,1720303834895,-150.0,0.00013997,2]
[331379898,1720303834907,-150.4840562,0.00013999,2]
[331379899,1720303834924,-498644.0432492,0.00014,2]
[331379900,1720303834940,-335.92939992,0.00014,2]
[331379901,1720303834953,-348.89010204,0.00014,2]
[331379902,1720303834966,-291.505,0.00014,2]
[331379903,1720303834977,-839.21049034,0.00014,2]
[331379904,1720303834992,-399.12662878,0.00014,2]
[331379905,1720303835005,-711.6,0.00014,2]
[331379906,1720303835018,-334.50747262,0.00014,2]
[331379907,1720303835031,-4670.58140367,0.00014,2]
[331379908,1720303835043,-660.054,0.00014,2]
[331379909,1720303835055,-387.0989336,0.00014,2]
[331379910,1720303835157,528.93489931,0.00011199,2]
[331379911,1720303839216,-363.3164253,0.0001372,2]
[331379912,1720303839229,-835.6835747,0.0001372,2]
[331379913,1720303839252,-11290.94414171,0.00014,2]
[331379914,1720303839267,-121320.76467531,0.00014,2]
[331379915,1720303839284,-4507.2485779,0.00014,2]
[331379916,1720303839298,-11255.0,0.00014,2]
[331379917,1720303839314,-6685.07965076,0.00014,2]
[331379918,1720303839332,-6282.04916003,0.00014,2]
[331379919,1720303839346,-621.1205,0.00014,2]
[331379920,1720303839664,-1936.04088029,0.00014,2]
[331379921,1720303839701,-478.84,0.00014,2]
[331379922,1720303839716,-798.65000003,0.00014,2]
[331379923,1720303839730,-4041.3036999,0.00014,2]
[331379925,1720303842068,-1664.0,0.0001372,2]
[331379928,1720303842079,-1273.99392876,0.000139,2]
[331379931,1720303842090,-150.48405619,0.00013999,2]
[331379934,1720303842101,-154.50098833,0.00014,2]
[331379936,1720303842114,-852.4277258,0.00014,2]
[331379940,1720303842127,-1385.68,0.00014,2]
[331379942,1720303842139,-43555.46377933,0.00014,2]
[331379944,1720303842155,-317.21065362,0.00014,2]
[331379946,1720303842169,-473.28023069,0.00014,2]
[331379948,1720303842185,-1917.30000001,0.00014,2]
[331379951,1720303842200,-698.10774386,0.00014,2]
[331379953,1720303842213,-369.65304915,0.00014,2]
[331379955,1720303842226,-60811.70229792,0.00014,2]
[331379957,1720303842238,-500.0,0.00014,2]
[331379959,1720303842249,-500.0,0.00014,2]
[331379961,1720303842259,-500.0,0.00014,2]
[331379963,1720303842270,-500.0,0.00014,2]
[331379965,1720303842280,-500.0,0.00014,2]
[331379967,1720303842290,-500.0,0.00014,2]
[331379969,1720303842300,-500.0,0.00014,2]
[331379971,1720303842311,-500.0,0.00014,2]
[331379973,1720303842323,-500.0,0.00014,2]
[331379975,1720303842333,-500.0,0.00014,2]
[331379977,1720303842345,-500.0,0.00014,2]
[331379979,1720303842356,-500.0,0.00014,2]
[331379982,1720303842367,-500.0,0.00014,2]
[331379984,1720303842378,-500.0,0.00014,2]
[331379986,1720303842389,-500.0,0.00014,2]
[331379988,1720303842399,-500.0,0.00014,2]
[331379989,1720303842410,-500.0,0.00014,2]
[331379992,1720303842425,-500.0,0.00014,2]
[331379993,1720303842435,-500.0,0.00014,2]
[331379995,1720303842445,-500.0,0.00014,2]
[331379997,1720303842456,-500.0,0.00014,2]
[331379999,1720303842467,-500.0,0.00014,2]
[331380002,1720303842477,-500.0,0.00014,2]
[331380004,1720303842488,-500.0,0.00014,2]
[331380006,1720303842498,-500.0,0.00014,2]
[331380007,1720303842509,-500.0,0.00014,2]
[331380009,1720303842519,-500.0,0.00014,2]
[331380011,1720303842530,-500.0,0.00014,2]
[331380014,1720303842540,-500.0,0.00014,2]
[331380016,1720303842551,-500.0,0.00014,2]
[331380018,1720303842561,-500.0,0.00014,2]
[331380020,1720303842571,-500.0,0.00014,2]
[331380021,1720303842581,-500.0,0.00014,2]
[331380023,1720303842592,-500.0,0.00014,2]
[331380025,1720303842602,-500.0,0.00014,2]
[331380027,1720303842613,-500.0,0.00014,2]
[331380029,1720303842622,-500.0,0.00014,2]
[331380031,1720303842633,-500.0,0.00014,2]
[331380033,1720303842644,-500.0,0.00014,2]
[331380035,1720303842656,-500.0,0.00014,2]
[331380037,1720303842666,-500.0,0.00014,2]
[331380039,1720303842676,-500.0,0.00014,2]
[331380041,1720303842688,-500.0,0.00014,2]
[331380043,1720303842698,-500.0,0.00014,2]
[331380045,1720303842708,-500.0,0.00014,2]
[331380047,1720303842719,-500.0,0.00014,2]
[331380049,1720303842730,-500.0,0.00014,2]
[331380051,1720303842740,-500.0,0.00014,2]
[331380053,1720303842750,-500.0,0.00014,2]
[331380055,1720303842760,-500.0,0.00014,2]
[331380057,1720303842770,-500.0,0.00014,2]
[331380059,1720303842781,-500.0,0.00014,2]
[331380061,1720303842791,-500.0,0.00014,2]
[331380063,1720303842802,-500.0,0.00014,2]
[331380065,1720303842812,-500.0,0.00014,2]
[331380067,1720303842823,-500.0,0.00014,2]
[331380069,1720303842833,-500.0,0.00014,2]
[331380071,1720303842844,-500.0,0.00014,2]
[331380073,1720303842856,-574.0,0.00014,2]
[331380075,1720303842867,-1550893.43886769,0.00014,2]
[331380078,1720303842884,-223847.91469875,0.00014,2]
[331380080,1720303842896,-304122.42373488,0.00014,2]
[331380082,1720303842909,-5963.71447418,0.00014,2]
[331380085,1720303842926,-5110.57347141,0.00014,2]
[331380087,1720303842939,-29283.63469689,0.00014,2]
[331380089,1720303842954,-1428.53893914,0.00014,2]
[331380092,1720303842966,-7287.50121933,0.00014,2]
[331380304,1720303845350,-19094.68,0.0001372,2]
[331380306,1720303845361,-26200.10335788,0.00014,2]
[331380609,1720303848634,-14272.0,0.00014,2]
[331380611,1720303848646,-428.531642,0.00014,2]
[331380613,1720303848658,-542.00088822,0.00014,2]
[331380615,1720303848669,-455.37695136,0.00014,2]
[331380617,1720303848681,-1732.88242047,0.00014,2]
[331380619,1720303848693,-346.0135875,0.00014,2]
[331380622,1720303848704,-337480.34999999,0.00014,2]
[331380624,1720303848716,-505.34240987,0.00014,2]
[331380660,1720303849077,-5442.5200103,0.00014,2]
[331380663,1720303849089,-6830.18951547,0.00014,2]
[331380665,1720303849103,-5751.99405538,0.00014,2]
[331380667,1720303849114,-1384.35305882,0.00014,2]
[331380669,1720303849127,-8425.59011423,0.00014,2]
[331380672,1720303849138,-9049.34034,0.00014,2]
[331380674,1720303849150,-5141.05443301,0.00014,2]
[331380676,1720303849168,-1217.59461359,0.00014,2]
[331380678,1720303849180,-5253.25914351,0.00014,2]
[331380730,1720303849705,-800.48498193,0.00014,2]
[331380732,1720303849717,-1332.03950276,0.00014,2]
[331380734,1720303849728,-13800.0,0.00014,2]
[331380737,1720303849740,-125096.01116631,0.00014,2]
[331380739,1720303849753,-2722.13144878,0.00014,2]
[331380741,1720303849765,-335.60142443,0.00014,2]
[331380743,1720303849777,-863.25539537,0.00014,2]
[331380745,1720303849789,-353.68141749,0.00014,2]
[331380748,1720303849803,-1181.38920354,0.00014,2]
[331380750,1720303849815,-851546.65832057,0.00014,2]
[331381601,1720304167236,2832.49115848,0.00011199,2]
[331381605,1720304513561,3110.75746026,0.00011199,2]
[331381610,1720304586937,887.22900173,0.00011199,2]
[331381612,1720304617479,1247.72529133,0.00011199,2]
[331381615,1720304759101,304.56363354,0.00011199,2]
[331381625,1720304985793,676.45,0.0001101,2]
[331381633,1720305032599,-211.49198651,0.000126,2]
[331381636,1720305032616,-250.0,0.00012944,2]
[331381639,1720305032661,-433.67,0.00012959,2]
[331381641,1720305032685,-200.0,0.00013034,2]
[331381642,1720305032696,-400.0,0.00013053,2]
[331381644,1720305032738,-126.99729095,0.000131,2]
[331381645,1720305033250,-373.00270905,0.000131,2]
[331381646,1720305033299,-300.0,0.00013128,2]
[331381647,1720305033326,-167.22,0.00013129,2]
[331381648,1720305033352,-7615.15,0.00013129,2]
[331381649,1720305033363,-676.45,0.00013274,2]
[331381650,1720305033391,-151.58,0.00013277,2]
[331381651,1720305033445,-528.93489931,0.00013472,2]
[331381652,1720305033456,-3759.92983337,0.00013516,2]
[331381653,1720305033482,-156.53084773,0.00013516,2]
[331381654,1720305033504,-250.0,0.00013551,2]
[331381655,1720305033515,-475.97321567,0.00013574,2]
[331381656,1720305033527,-266.32,0.00013691,2]
[331381657,1720305033539,-499.99,0.00013691,2]
[331381658,1720305033551,-1000.0,0.00013712,2]
[331381659,1720305033565,-150.0,0.00013712,2]
[331381660,1720305033599,-1042.76945161,0.0001372,2]
[331381661,1720305033626,-1138.98012696,0.0001372,2]
[331381662,1720305033655,-298408.0,0.00013721,2]
[331381663,1720305033668,-1126.3595,0.0001376,2]
[331381664,1720305033704,-175.09701807,0.00013781,2]
[331381665,1720305033743,-150.0,0.000138,2]
[331381666,1720305033753,-854.45,0.000138,2]
[331381667,1720305033764,-854.45,0.000138,2]
[331381668,1720305033778,-175.09701805,0.00013811,2]
[331381671,1720305033856,-3000.0,0.0001386,2]
[331381672,1720305033868,-385.10220627,0.00013862,2]
[331381673,1720305033879,-250.0,0.00013882,2]
[331381676,1720305033916,-19453.8419,0.000139,2]
[331381679,1720305033945,-194.8723,0.000139,2]
[331381681,1720305033984,-303.96,0.000139,2]
[331381682,1720305033999,-7500.0,0.000139,2]
[331381683,1720305034014,-2500.0,0.000139,2]
[331381684,1720305034031,-367.87352946,0.000139,2]
[331381685,1720305034101,-509.780662,0.00013973,2]
[331381686,1720305034122,-561.67223971,0.0001399,2]
[331381687,1720305034154,-390.33718009,0.0001399,2]
[331381688,1720305034176,-390.33718009,0.0001399,2]
[331381689,1720305034190,-390.33718009,0.0001399,2]
[331381690,1720305034274,-165467.55247136,0.00014,2]
[331381691,1720305034325,-15615.0,0.00014,2]
[331381692,1720305034340,-845.39999995,0.00014,2]
[331381693,1720305034378,-16386.13636758,0.00014,2]
[331381694,1720305034398,-534345.22133344,0.00014,2]
[331381695,1720305034409,-96518.29871159,0.00014,2]
[331381696,1720305034423,-5132.47009967,0.00014,2]
[331381697,1720305034453,-527.06338007,0.00014,2]
[331381698,1720305034485,-1904.64529424,0.00014,2]
[331381700,1720305040560,-1110.34563766,0.0001372,2]
[331381702,1720305040571,-1799.58236203,0.0001388,2]
[331381704,1720305040585,-372.94911677,0.0001388,2]
[331381713,1720305040623,-473.3383626,0.0001388,2]
[331381717,1720305040638,-1795.90396214,0.0001388,2]
[331381719,1720305040652,-11051.09671202,0.0001388,2]
[331381722,1720305040693,-600.5,0.0001388,2]
[331381723,1720305040706,-1714.02530894,0.0001388,2]
[331381804,1720305042363,-20173.06721821,0.0001388,2]
[331381807,1720305042391,-136984.61799903,0.00014,2]
[331381810,1720305042407,-825.15284921,0.00014,2]
[331381812,1720305042420,-1595.00618646,0.00014,2]
[331381816,1720305042451,-4661.7770805,0.00014,2]
[331381818,1720305042464,-600.96056067,0.00014,2]
[331381821,1720305042478,-1114.04420081,0.00014,2]
[331381824,1720305042499,-1950.0,0.00014,2]
[331381825,1720305042511,-262.04709994,0.00014,2]
[331381829,1720305042578,-648.17804131,0.00014,2]
[331381833,1720305042624,-1465.41185795,0.00014,2]
[331381834,1720305042639,-32332.34669367,0.00014,2]
[331381836,1720305042691,-1661.8907034,0.00014,2]
[331381866,1720305047149,-525.2373216,0.00014,2]
[331381867,1720305047162,-300271.81773756,0.00014,2]
[331381870,1720305047176,-621.1425422,0.00014,2]
[331381872,1720305047194,-3930.81363626,0.00014,2]
[331381906,1720305048579,-889.93597073,0.00014,2]
[331381909,1720305048628,-362.68407531,0.00014,2]
[331381912,1720305048667,-429.34971866,0.00014,2]
[331381915,1720305048680,-1673.90953421,0.00014,2]
[331381917,1720305048718,-712.46780598,0.00014,2]
[331381919,1720305048731,-357.69482547,0.00014,2]
[331381931,1720305048917,-938.82390668,0.00014,2]
[331381933,1720305048932,-6069.28380622,0.00014,2]
[331381935,1720305048945,-507.53028692,0.00014,2]
[331382033,1720305051235,-10612.60450685,0.00014,2]
[331382034,1720305051248,-126122.98139696,0.00014,2]
[331382035,1720305130292,461.46054517,0.00011199,2]
[331382039,1720305420757,304.56363354,0.00011199,2]
[331382041,1720305447327,5601.11144692,0.00011199,2]
[331382042,1720305484254,1053.17959059,0.00011199,2]
[331382043,1720305485452,203.10007598,0.00011199,2]
[331382044,1720305496038,945.20224638,0.00011199,2]
[331382045,1720305504227,316.92109107,0.00011199,2]
[331382046,1720305530790,173.62250131,0.00011199,2]
[331382048,1720305547545,155.0,0.00011199,2]
[331382049,1720305548991,474.52583922,0.00011199,2]
[331382050,1720305562104,3026.55714757,0.00011199,2]
[331382051,1720305572682,413.1577798,0.00011199,2]
[331382052,1720305594727,163.7587599,0.00011199,2]
[331382054,1720305609158,647.71813835,0.00011199,2]
[331382056,1720305658981,174.35486347,0.00011199,2]
[331382057,1720305660719,276.55668543,0.00011199,2]
[331382058,1720305663450,528.58712719,0.00011199,2]
[331382059,1720305682695,331.63513846,0.00011199,2]
[331382061,1720305690403,672.91,0.00010671,2]
[331382062,1720305693381,258.94577751,0.00011199,2]
[331382063,1720305702792,175.29870113,0.00011199,2]
[331382064,1720305709573,155.36558088,0.00011199,2]
[331382066,1720305722894,474.3242111,0.00011199,2]
[331382067,1720305723952,155.0,0.00011199,2]
[331382068,1720305725813,431.06738212,0.00011199,2]
[331382069,1720305727924,299.1423514,0.00011199,2]
[331382070,1720305740880,393.45339341,0.00011199,2]
[331382071,1720305762824,369.10027761,0.00011199,2]
[331382073,1720305771486,227.14828732,0.00011199,2]
[331382074,1720305772928,346.60490841,0.00011199,2]
[331382079,1720305828268,366.13665381,0.00011199,2]
[331382080,1720305828300,364.23336272,0.00011199,2]
[331382081,1720305828344,235.5502268,0.00011199,2]
[331382082,1720305828756,544.56604372,0.00011199,2]
[331382083,1720305832966,167.19006825,0.000117,2]
[331382084,1720305839060,-11485.0,0.000156,5]
[331382087,1720305865166,-11485.0,0.000156,5]
[331382089,1720305885713,304.56363354,0.00011199,2]
[331382098,1720305918574,209.6837457,0.00011199,2]
[331382100,1720305922107,-11485.0,0.000156,5]
[331382102,1720305938132,506.16120352,0.00011199,2]
[331382103,1720305938511,7356.39304121,0.000117,2]
[331382106,1720305964022,-9371.0,0.000156,5]
[331382107,1720305967413,275.29411076,0.00011199,2]
[331382108,1720305968312,242.43380697,0.00011199,2]
[331382109,1720305969070,155.0,0.00011199,2]
[331382110,1720305994173,184.28825685,0.000117,2]
[331382111,1720306032912,2832.49115848,0.00011199,2]
[331382112,1720306071611,297.67407573,0.00011199,2]
[331382114,1720306136363,158.50995322,0.00011199,2]
[331382121,1720306176291,518.69562264,0.00011199,2]
[331382139,1720306233117,-1673.915197,0.00011741,2]
[331382140,1720306233129,-910.63207595,0.000118,2]
[331382141,1720306233140,-150.0,0.00012274,2]
[331382142,1720306233150,-482.0,0.0001243,2]
[331382143,1720306233165,-1000.0,0.00012473,2]
[331382144,1720306233175,-1876.0546342,0.0001251,2]
[331382145,1720306233185,-250.0,0.00012579,2]
[331382146,1720306233196,-150.0,0.000126,2]
[331382147,1720306233206,-4654.62,0.00012612,2]
[331382148,1720306233216,-6166.48,0.00012613,2]
[331382149,1720306233226,-200.0,0.0001269,2]
[331382150,1720306233236,-782.57,0.0001269,2]
[331382151,1720306233246,-168.99,0.000127,2]
[331382152,1720306233256,-499.99,0.000127,2]
[331382153,1720306233266,-150.99,0.00012717,2]
[331382154,1720306233276,-672.91,0.00012935,2]
[331382155,1720306233286,-40159.0,0.00013039,2]
[331382156,1720306233297,-1706.96,0.00013041,2]
[331382157,1720306233308,-368.88041149,0.00013128,2]
[331382158,1720306233319,-2828.69615452,0.00013128,2]
[331382159,1720306233328,-250.0,0.00013168,2]
[331382160,1720306233339,-164.87,0.00013178,2]
[331382161,1720306233349,-528.66,0.00013178,2]
[331382162,1720306233359,-528.66,0.00013178,2]
[331382163,1720306233370,-528.66,0.000132,2]
[331382164,1720306233381,-4102.20144658,0.000133,2]
[331382165,1720306233391,-300.0,0.0001331,2]
[331382166,1720306233401,-164.92,0.0001331,2]
[331382167,1720306233412,-419.2,0.00013341,2]
[331382168,1720306233423,-300.0,0.00013349,2]
[331382169,1720306233433,-426.81,0.00013396,2]
[331382170,1720306233443,-840.84,0.00013478,2]
[331382171,1720306233454,-247.00917619,0.00013516,2]
[331382172,1720306233464,-292.65387629,0.00013543,2]
[331382173,1720306233474,-489.25645257,0.00013574,2]
[331382174,1720306233484,-158.43270964,0.00013574,2]
[331382175,1720306233494,-150.0,0.00013616,2]
[331382176,1720306233504,-250.0,0.00013699,2]
[331382177,1720306233514,-413.33098221,0.00013699,2]
[331382178,1720306233529,-901.42901779,0.00013699,2]
[331382179,1720306233539,-1670.74,0.00013699,2]
[331382180,1720306233550,-1050.632278,0.0001372,2]
[331382181,1720306233561,-1143.11294034,0.0001372,2]
[331382182,1720306233572,-1016.99665056,0.0001372,2]
[331382183,1720306233583,-310.0,0.0001376,2]
[331382184,1720306233592,-2813.5844,0.0001376,2]
[331382185,1720306233605,-500.0,0.00013888,2]
[331382186,1720306233615,-273.25,0.0001389,3]
[331382187,1720306233625,-158.92820403,0.000139,2]
[331382188,1720306233636,-15994.51161418,0.000139,2]
[331382189,1720306233648,-948.25682298,0.000139,2]
[331382190,1720306233662,-47909.24826284,0.000139,2]
[331382191,1720306233672,-802.3817,0.000139,2]
[331382192,1720306233682,-360.53379563,0.000139,2]
[331382193,1720306233696,-348.65707318,0.000139,2]
[331382194,1720306233705,-7500.0,0.000139,2]
[331382195,1720306233715,-770.89495388,0.000139,2]
[331382196,1720306233725,-525.29105415,0.000139,2]
[331382197,1720306233735,-1090.1049019,0.000139,2]
[331382198,1720306233745,-530.0,0.00014,2]
[331382199,1720306233755,-662139.45904647,0.00014,2]
[331382200,1720306233886,-16942.69611157,0.00014,2]
[331382201,1720306233898,-286.18192272,0.00014,2]
[331382202,1720306233911,-396.24892489,0.00014,2]
[331382206,1720306238886,-331.0,0.00012302,2]
[331382207,1720306238898,-15.43079839,0.00012302,2]
[331382208,1720306238908,-64415.06696645,0.00014,2]
[331382262,1720306241815,-994.45767673,0.000139,2]
[331382264,1720306241826,-813.95456746,0.00014,2]
[331382268,1720306241837,-1606.0,0.00014,2]